bitfinex/quotes_SOLUSD_20250728
["timestamp","ask_amount","ask_price","bid_price","bid_amount"]
[1753670146112,7.22655475,191.5,191.43,16.78468397]
[1753670146331,7.22655475,191.49,191.44,7.22655475]
[1753670146523,7.91655475,191.48,191.42,12.45063845]
[1753670147129,0.69,191.48,191.42,5.2240837]
[1753670147438,48.14655475,191.49,191.43,12.4501345]
[1753670147743,40.92,191.49,191.43,12.4501345]
[1753670148043,40.92,191.49,191.45,7.22655475]
[1753670148422,0.03,191.53,191.47,7.22655475]
[1753670148625,3.87831541,191.52,191.48,7.22655475]
[1753670148843,41.41695369,191.53,191.5,7.22655475]
[1753670148844,3.87831541,191.51,191.5,7.22655475]
[1753670149345,0.03,191.53,191.5,13.1382475]
[1753670149522,0.03,191.53,191.51,7.22655475]
[1753670150120,0.03,191.53,191.51,7.91655475]
[1753670151068,0.03,191.53,191.52,7.22655475]
[1753670151366,0.03,191.53,191.52,12.44794155]
[1753670151730,0.03,191.53,191.52,13.13794155]
[1753670154162,0.03,191.53,191.5,5.22193211]
[1753670154349,0.03,191.53,191.52,7.22655475]
[1753670154849,0.03,191.53,191.52,25.2533774]
[1753670156337,0.03,191.53,191.52,30.4747642]
[1753670159786,0.03,191.53,191.52,7.22655475]
[1753670160588,0.03,191.53,191.52,13.16794155]
[1753670160764,0.03,191.53,191.52,12.44794155]
[1753670160958,0.03,191.53,191.52,7.22655475]
[1753670161586,0.03,191.53,191.49,5.22201429]
[1753670161768,0.03,191.53,191.52,7.94655475]
[1753670161971,0.03,191.53,191.52,25.2533774]
[1753670162592,0.03,191.53,191.52,29.95262552]
[1753670162774,0.03,191.53,191.52,12.44794155]
[1753670162972,0.03,191.53,191.48,0.72]
[1753670163289,0.03,191.53,191.47,62.44742767]
[1753670163478,0.03,191.53,191.51,7.22655475]
[1753670164181,0.03,191.53,191.47,45.6627437]
[1753670164377,0.03,191.53,191.52,7.22655475]
[1753670164786,0.03,191.53,191.52,24.73123872]
[1753670165284,0.03,191.53,191.52,24.01123872]
[1753670165497,0.03,191.53,191.52,24.73123872]
[1753670165869,0.03,191.53,191.52,25.2533774]
[1753670166087,0.03,191.53,191.52,51.53770054]
[1753670166395,8.95639809,191.57,191.56,48.00498048]
[1753670166797,8.95639809,191.57,191.56,55.95153523]
[1753670167777,8.95639809,191.57,191.56,29.23153523]
[1753670167990,8.95639809,191.57,191.56,7.22655475]
[1753670168678,8.95639809,191.57,191.55,5.22056854]
[1753670168875,8.95639809,191.57,191.54,22.00546807]
[1753670169075,8.95639809,191.57,191.56,7.22655475]
[1753670169272,8.95639809,191.57,191.54,22.00546807]
[1753670169479,8.95639809,191.57,191.53,40.34]
[1753670169887,8.95639809,191.57,191.54,17.50468397]
[1753670170088,8.95639809,191.57,191.56,7.22655475]
[1753670170875,8.95639809,191.57,191.53,5.2210901]
[1753670170876,14.86642501,191.57,191.54,7.22655475]
[1753670171081,0.69,191.56,191.54,7.22655475]
[1753670171402,8.95639809,191.57,191.55,7.22655475]
[1753670171775,8.95639809,191.57,191.51,0.72]
[1753670171989,8.95639809,191.57,191.55,7.22655475]
[1753670172479,0.69,191.56,191.5,133.80187727]
[1753670172687,14.22120844,191.55,191.45,0.72]
[1753670172973,14.22120844,191.55,191.42,0.06]
[1753670172974,7.22655475,191.53,191.47,7.22655475]
[1753670173189,0.69,191.52,191.43,45.46384161]
[1753670173388,0.69,191.52,191.48,7.22655475]
[1753670173587,6.4677,191.55,191.44,0.72]
[1753670173588,13.69425475,191.55,191.44,16.78468397]
[1753670173805,13.69425475,191.55,191.46,0.72]
[1753670173806,6.4677,191.55,191.46,0.72]
[1753670174104,6.4677,191.55,191.52,7.22655475]
[1753670174304,0.69,191.54,191.48,0.72]
[1753670174604,5.91110668,191.54,191.5,7.22655475]
[1753670174802,6.4677,191.55,191.53,7.22655475]
[1753670175001,8.95639809,191.57,191.54,7.22655475]
[1753670175296,8.95639809,191.57,191.56,7.22655475]
[1753670175804,9.64639809,191.57,191.47,5.94263659]
[1753670176010,7.75350844,191.56,191.51,7.22655475]
[1753670176307,14.86666203,191.57,191.52,7.22655475]
[1753670176475,5.91040941,191.56,191.52,7.22655475]
[1753670176677,8.95639809,191.57,191.54,7.22655475]
[1753670176894,8.95639809,191.57,191.52,0.72]
[1753670176895,8.95639809,191.57,191.56,7.22655475]
[1753670178296,8.95639809,191.57,191.53,0.72]
[1753670178491,8.95639809,191.57,191.56,7.22655475]
[1753670179202,8.95639809,191.57,191.5,0.52219321]
[1753670179203,8.95639809,191.57,191.51,16.78468397]
[1753670179409,0.52695369,191.56,191.5,0.72]
[1753670179590,15.39341307,191.57,191.52,7.22655475]
[1753670179781,0.69,191.56,191.52,7.22655475]
[1753670180108,8.95639809,191.57,191.55,7.22655475]
[1753670180487,0.69,191.56,191.53,7.22655475]
[1753670180696,0.69,191.56,191.49,0.72]
[1753670181022,0.69,191.56,191.53,7.22655475]
[1753670181191,0.69,191.56,191.49,0.72]
[1753670181397,0.69,191.56,191.53,7.22655475]
[1753670181699,1.21695369,191.55,191.51,7.22655475]
[1753670182009,0.69,191.54,191.48,5.22226157]
[1753670182425,0.69,191.54,191.5,7.22655475]
[1753670182724,0.69,191.54,191.51,7.22655475]
[1753670183216,0.52695369,191.56,191.52,7.22655475]
[1753670183516,14.86667672,191.57,191.55,7.22655475]
[1753670183517,8.95639809,191.57,191.55,7.22655475]
[1753670183718,8.95639809,191.57,191.56,7.22655475]
[1753670184919,8.95639809,191.57,191.56,7.94655475]
[1753670185118,8.95639809,191.57,191.56,13.16685126]
[1753670185309,8.95639809,191.57,191.56,7.94655475]
[1753670185825,8.95639809,191.57,191.56,13.16685126]
[1753670186022,8.95639809,191.57,191.56,7.94655475]
[1753670186226,8.95639809,191.57,191.56,7.22655475]
[1753670186626,14.8664221,191.57,191.49,0.72]
[1753670186934,8.95639809,191.57,191.56,7.22655475]
[1753670187708,8.95639809,191.57,191.54,7.22655475]
[1753670188119,8.95639809,191.57,191.5,5.94172041]
[1753670188120,8.95639809,191.57,191.56,7.22655475]
[1753670188332,8.95639809,191.57,191.55,7.22655475]
[1753670188716,8.95639809,191.57,191.52,5.94123228]
[1753670188925,9.64639809,191.57,191.5,0.72]
[1753670189126,9.64639809,191.57,191.53,7.22655475]
[1753670189444,8.95639809,191.57,191.54,7.22655475]
[1753670189622,0.52695369,191.56,191.54,7.22655475]
[1753670189827,14.86648121,191.57,191.53,7.22655475]
[1753670190030,8.95639809,191.57,191.5,0.72]
[1753670190217,9.48335178,191.57,191.54,7.22655475]
[1753670190423,9.48335178,191.57,191.53,7.22655475]
[1753670190623,9.48335178,191.57,191.54,7.22655475]
[1753670190828,15.39348027,191.57,191.54,7.22655475]
[1753670191030,0.69,191.56,191.52,7.22655475]
[1753670191246,1.21695369,191.55,191.52,7.22655475]
[1753670191450,1.21695369,191.55,191.51,7.22655475]
[1753670191953,1.21695369,191.55,191.48,5.22227074]
[1753670192126,1.21695369,191.55,191.47,0.72]
[1753670192127,5.22084159,191.54,191.49,7.22655475]
[1753670192317,1.21695369,191.53,191.48,7.22655475]
[1753670193213,1.21695369,191.53,191.47,0.72]
[1753670193420,1.21695369,191.53,191.46,7.22655475]
[1753670193421,7.22655475,191.51,191.46,7.22655475]
[1753670193616,1.21695369,191.5,191.46,7.22655475]
[1753670194244,1.21695369,191.53,191.48,7.22655475]
[1753670194451,39.88,191.53,191.5,7.22655475]
[1753670194745,39.88,191.53,191.51,7.22655475]
[1753670194921,39.88,191.53,191.52,7.22655475]
[1753670195123,54.03667604,191.57,191.52,7.94655475]
[1753670195324,0.52695369,191.56,191.5,0.72]
[1753670195623,8.95639809,191.57,191.55,7.22655475]
[1753670197179,8.95639809,191.57,191.55,12.44699195]
[1753670197333,8.95639809,191.57,191.56,7.22655475]
[1753670198653,8.95639809,191.57,191.54,5.22080805]
[1753670198836,8.95639809,191.57,191.55,7.22655475]
[1753670199038,8.95639809,191.57,191.53,7.22655475]
[1753670199359,9.64639809,191.57,191.53,7.22655475]
[1753670199747,8.95639809,191.57,191.53,7.94655475]
[1753670199945,8.95639809,191.57,191.53,7.22655475]
[1753670200344,8.95639809,191.57,191.53,7.94655475]
[1753670200544,8.95639809,191.57,191.54,7.22655475]
[1753670201849,8.95639809,191.57,191.54,0.72]
[1753670202061,8.95639809,191.57,191.55,7.22655475]
[1753670203766,8.95639809,191.57,191.53,5.22110302]
[1753670203943,8.95639809,191.57,191.55,7.22655475]
[1753670205657,8.95639809,191.57,191.54,7.22655475]
[1753670207568,8.95639809,191.57,191.56,7.22655475]
[1753670207873,8.95639809,191.57,191.53,5.22109449]
[1753670208055,8.95639809,191.57,191.53,5.94109449]
[1753670208247,8.95639809,191.57,191.54,7.22655475]
[1753670208448,8.95639809,191.57,191.54,7.94655475]
[1753670208675,8.95639809,191.57,191.56,7.22655475]
[1753670208850,8.95639809,191.57,191.56,7.94655475]
[1753670210376,8.95639809,191.57,191.56,13.16685126]
[1753670210754,8.95639809,191.57,191.56,29.95153523]
[1753670212763,0.03,191.61,191.57,16.78468397]
[1753670212968,0.03,191.61,191.6,7.22655475]
[1753670213682,0.03,191.61,191.6,7.94655475]
[1753670214985,0.03,191.61,191.6,13.16576143]
[1753670216861,0.03,191.61,191.6,10.84496557]
[1753670217784,0.03,191.61,191.58,4.90575889]
[1753670217980,0.03,191.61,191.6,4.90575889]
[1753670218560,0.03,191.61,191.6,5.58575889]
[1753670219165,0.03,191.61,191.6,10.80496557]
[1753670220171,0.03,191.61,191.6,27.58964954]
[1753670220581,1e-08,191.61,191.6,32.49540843]
[1753670220782,49.987,191.7,191.68,16.78468397]
[1753670220984,49.987,191.7,191.69,27.27620175]
[1753670221174,49.987,191.7,191.69,27.58719908]
[1753670221374,49.987,191.7,191.69,10.80251511]
[1753670221574,49.987,191.7,191.69,15.708274]
[1753670222877,49.987,191.7,191.69,13.73569704]
[1753670223076,49.987,191.7,191.67,31.21706683]
[1753670223392,49.987,191.7,191.69,7.83894082]
[1753670224471,49.987,191.7,191.69,8.51894082]
[1753670224970,49.987,191.7,191.69,0.68]
[1753670225170,49.987,191.7,191.69,8.51894082]
[1753670225386,49.987,191.7,191.69,13.73569704]
[1753670225778,49.987,191.7,191.69,8.51894082]
[1753670225980,49.987,191.7,191.69,7.83894082]
[1753670226783,49.987,191.7,191.69,13.73569704]
[1753670226982,49.987,191.7,191.69,30.52038101]
[1753670228088,49.987,191.7,191.65,39.34]
[1753670228289,1.21695369,191.69,191.66,7.83894082]
[1753670228600,0.69,191.68,191.65,7.83894082]
[1753670228974,0.69,191.68,191.61,62.02358464]
[1753670229186,0.52695369,191.67,191.64,7.83894082]
[1753670229395,0.69,191.67,191.65,7.83894082]
[1753670229698,39.34,191.68,191.61,16.78468397]
[1753670229898,39.34,191.68,191.67,7.83894082]
[1753670230279,49.987,191.7,191.67,7.83894082]
[1753670230494,49.987,191.7,191.69,7.83894082]
[1753670231089,49.987,191.7,191.65,5.21784503]
[1753670231393,50.677,191.7,191.67,7.83894082]
[1753670232092,50.677,191.7,191.68,7.83894082]
[1753670232776,50.677,191.7,191.65,5.21775097]
[1753670232974,0.69,191.69,191.67,7.83894082]
[1753670233189,55.20352807,191.7,191.62,0.52186619]
[1753670233396,40.03,191.68,191.64,7.83894082]
[1753670233717,0.52695369,191.69,191.67,7.83894082]
[1753670233877,89.327,191.7,191.68,7.83894082]
[1753670234198,49.987,191.7,191.69,7.83894082]
[1753670234696,49.987,191.7,191.69,13.73569704]
[1753670235268,49.987,191.7,191.69,30.52038101]
[1753670236199,37.63268493,191.77,191.69,83.04443313]
[1753670236382,1.24695369,191.78,191.75,7.83894082]
[1753670236583,0.72,191.78,191.77,7.83894082]
[1753670236901,0.03,191.78,191.77,7.83894082]
[1753670238178,5.93442333,191.78,191.76,7.83894082]
[1753670238700,0.72,191.78,191.76,7.83894082]
[1753670238903,0.03,191.78,191.76,7.83894082]
[1753670239272,0.03,191.78,191.69,39.34]
[1753670239273,1.21695369,191.77,191.75,7.83894082]
[1753670239586,1.21695369,191.77,191.7,16.78468397]
[1753670239786,1.21695369,191.77,191.75,7.83894082]
[1753670240090,0.03,191.78,191.76,7.83894082]
[1753670241321,0.72,191.78,191.72,5.21589687]
[1753670241622,1.24695369,191.78,191.75,7.83894082]
[1753670241912,0.55695369,191.78,191.75,7.83894082]
[1753670242608,0.69,191.77,191.72,0.68]
[1753670242806,40.53695369,191.76,191.72,7.83894082]
[1753670244119,45.7518662,191.76,191.73,7.83894082]
[1753670244427,39.32,191.76,191.74,7.83894082]
[1753670244722,39.32,191.76,191.7,5.21643125]
[1753670244723,39.32,191.76,191.75,7.83894082]
[1753670245013,39.87695369,191.78,191.75,7.83894082]
[1753670245605,39.87695369,191.78,191.76,7.83894082]
[1753670246003,0.55695369,191.78,191.76,7.83894082]
[1753670246216,0.55695369,191.78,191.74,0.66]
[1753670246217,0.55695369,191.78,191.75,7.83894082]
[1753670247344,0.55695369,191.78,191.76,7.83894082]
[1753670247697,1.22695369,191.78,191.75,7.83894082]
[1753670248224,0.55695369,191.78,191.75,7.83894082]
[1753670248797,0.55695369,191.78,191.75,4.89927283]
[1753670249213,0.55695369,191.78,191.72,5.87569591]
[1753670249541,0.55695369,191.78,191.75,4.89927283]
[1753670250612,0.55695369,191.78,191.74,0.66]
[1753670250926,5.77128334,191.78,191.7,5.21624726]
[1753670251147,0.67,191.77,191.73,4.89927283]
[1753670251305,0.67,191.77,191.7,26.0]
[1753670251306,0.52695369,191.77,191.74,4.89927283]
[1753670252015,0.52695369,191.77,191.74,5.55927283]
[1753670252315,0.55695369,191.78,191.75,5.55927283]
[1753670252519,1.22695369,191.78,191.73,0.66]
[1753670252718,0.55695369,191.78,191.75,4.89927283]
[1753670253232,0.55695369,191.78,191.76,5.55927283]
[1753670253836,0.03,191.78,191.77,4.89927283]
[1753670254005,0.03,191.78,191.76,4.89927283]
[1753670255230,0.03,191.78,191.74,5.87533152]
[1753670255443,0.03,191.78,191.77,4.89927283]
[1753670256226,0.03,191.78,191.75,0.66]
[1753670256473,0.03,191.78,191.76,4.89927283]
[1753670257853,0.03,191.78,191.75,0.66]
[1753670258044,0.03,191.78,191.76,4.89927283]
[1753670259240,0.55695369,191.78,191.72,5.87569116]
[1753670259446,0.55695369,191.78,191.75,4.89927283]
[1753670259662,0.03,191.78,191.76,0.66]
[1753670260034,0.03,191.78,191.76,5.55927283]
[1753670260736,0.03,191.78,191.77,5.55927283]
[1753670261148,0.03,191.78,191.77,4.89927283]
[1753670261345,0.03,191.78,191.77,10.77385279]
[1753670261560,0.52695369,191.88,191.78,16.78468397]
[1753670261764,39.3,191.87,191.85,4.89927283]
[1753670261956,39.3,191.87,191.8,4.89927283]
[1753670262259,39.3,191.87,191.85,4.89927283]
[1753670262763,39.3,191.87,191.84,4.89927283]
[1753670262964,5.73863011,191.88,191.84,4.89927283]
[1753670263140,39.3,191.87,191.84,4.89927283]
[1753670263460,0.52695369,191.86,191.84,4.89927283]
[1753670263672,0.52695369,191.86,191.85,4.89927283]
[1753670263832,5.21202486,191.87,191.85,4.89927283]
[1753670264037,0.52695369,191.86,191.84,4.89927283]
[1753670264967,0.67,191.85,191.79,0.66]
[1753670265143,0.52695369,191.84,191.79,4.89927283]
[1753670265331,1.19695369,191.84,191.79,5.55927283]
[1753670265532,40.47695369,191.84,191.79,0.66]
[1753670265750,4.89927283,191.81,191.74,0.66]
[1753670266033,4.89927283,191.81,191.7,4.95927283]
[1753670266034,51.87352652,191.8,191.7,0.06]
[1753670266343,4.89927283,191.73,191.7,0.06]
[1753670266548,56.62350184,191.73,191.7,0.06]
[1753670266741,63.52168863,191.73,191.72,1e-08]
[1753670266941,73.27425041,191.73,191.72,1e-08]
[1753670267143,103.27425041,191.73,191.68,0.06]
[1753670267355,103.27425041,191.73,191.64,0.06]
[1753670267356,4.89927283,191.69,191.64,0.06]
[1753670267552,4.89927283,191.65,191.64,0.06]
[1753670267758,10.93027283,191.65,191.64,0.06]
[1753670267948,11.60027283,191.65,191.64,0.06]
[1753670268267,11.60027283,191.65,191.56,0.06]
[1753670268268,5.26309591,191.64,191.56,0.06]
[1753670268440,4.89927283,191.6,191.56,0.06]
[1753670268643,4.89927283,191.57,191.56,0.06]
[1753670268957,0.52695369,191.59,191.56,0.06]
[1753670269264,30.0,191.57,191.56,7.26470205]
[1753670269469,30.0,191.57,191.56,0.06]
[1753670269847,37.20470205,191.57,191.56,0.06]
[1753670270051,37.87470205,191.57,191.56,0.06]
[1753670270249,44.02830205,191.57,191.56,0.06]
[1753670270668,50.76204439,191.57,191.54,0.2]
[1753670270966,12.42527109,191.55,191.54,0.2]
[1753670271140,37.20470205,191.55,191.54,0.2]
[1753670271468,76.96470205,191.55,191.54,0.2]
[1753670271773,30.0,191.55,191.54,0.2]
[1753670272245,39.76,191.56,191.54,0.86]
[1753670272438,0.52695369,191.58,191.54,8.06470205]
[1753670272635,40.28695369,191.58,191.55,7.86470205]
[1753670272839,30.0,191.56,191.54,0.2]
[1753670273035,39.76,191.59,191.55,7.20470205]
[1753670273261,39.76,191.59,191.55,7.86470205]
[1753670273544,39.76,191.59,191.57,7.20470205]
[1753670273857,0.52695369,191.6,191.58,0.66]
[1753670274058,40.24695369,191.64,191.59,7.20470205]
[1753670274241,40.24695369,191.64,191.54,31.42077711]
[1753670274242,5.2183896,191.63,191.58,7.20470205]
[1753670274564,5.2183896,191.63,191.54,31.42077711]
[1753670274565,7.20470205,191.6,191.55,7.20470205]
[1753670274762,0.52695369,191.59,191.55,7.86470205]
[1753670275068,39.7,191.6,191.57,7.20470205]
[1753670275236,45.42570779,191.62,191.57,7.92470205]
[1753670275440,40.20695369,191.62,191.58,7.20470205]
[1753670275746,39.68,191.64,191.61,7.20470205]
[1753670275949,39.68,191.64,191.63,7.20470205]
[1753670276265,69.68,191.64,191.62,7.20470205]
[1753670276562,69.68,191.64,191.63,7.20470205]
[1753670276862,30.0,191.64,191.63,7.92470205]
[1753670277052,39.66,191.67,191.63,7.92470205]
[1753670277253,39.66,191.67,191.66,7.20470205]
[1753670277561,69.66,191.67,191.66,7.20470205]
[1753670277864,30.0,191.67,191.66,7.92470205]
[1753670278063,39.62,191.7,191.66,7.92470205]
[1753670278270,5.7426311,191.73,191.63,5.21836643]
[1753670278271,39.62,191.71,191.69,7.20470205]
[1753670278479,39.62,191.71,191.67,0.72]
[1753670278784,39.62,191.71,191.68,0.72]
[1753670278968,39.62,191.71,191.69,0.72]
[1753670279278,44.81540021,191.74,191.7,7.92470205]
[1753670279459,44.81540021,191.74,191.71,7.20470205]
[1753670279660,0.52695369,191.73,191.71,7.20470205]
[1753670279852,0.52695369,191.73,191.7,0.72]
[1753670280052,0.52695369,191.73,191.7,7.20470205]
[1753670280250,0.52695369,191.73,191.68,7.20470205]
[1753670280251,1.21695369,191.73,191.68,7.20470205]
[1753670280485,7.20470205,191.69,191.6,7.20470205]
[1753670280659,7.20470205,191.64,191.59,0.72]
[1753670280975,7.20470205,191.64,191.54,5.42083355]
[1753670280976,1.21695369,191.63,191.56,0.72]
[1753670281161,0.52695369,191.63,191.59,7.20470205]
[1753670281480,7.20470205,191.62,191.56,7.92470205]
[1753670281786,7.20470205,191.57,191.54,0.2]
[1753670281986,7.20470205,191.55,191.54,0.2]
[1753670282180,39.6,191.55,191.54,0.2]
[1753670282376,46.80470205,191.55,191.54,0.2]
[1753670282676,39.6,191.55,191.54,0.2]
[1753670282885,47.49470205,191.55,191.54,0.2]
[1753670283057,47.49470205,191.55,191.52,0.2]
[1753670283058,87.3555041,191.55,191.5,0.06]
[1753670283257,26.0,191.48,191.36,0.06]
[1753670283462,7.20470205,191.43,191.36,0.06]
[1753670283664,47.81165574,191.43,191.36,0.06]
[1753670283861,6.537,191.42,191.36,0.06]
[1753670284062,7.20470205,191.39,191.36,0.06]
[1753670284285,47.26470205,191.39,191.36,0.06]
[1753670284879,50.95268249,191.39,191.36,0.06]
[1753670285266,56.17761587,191.39,191.36,0.06]
[1753670285473,86.86761587,191.39,191.38,1e-08]
[1753670285669,86.86761587,191.39,191.36,1e-08]
[1753670285670,87.39456956,191.39,191.36,1e-08]
[1753670285965,47.78536498,191.37,191.32,0.06]
[1753670286165,10.89268249,191.33,191.32,0.06]
[1753670286471,40.02,191.33,191.32,0.06]
[1753670286784,40.54695369,191.33,191.32,0.06]
[1753670286988,51.43963618,191.33,191.32,0.06]
[1753670287192,57.35620807,191.33,191.32,0.06]
[1753670287493,6.537,191.29,191.18,0.06]
[1753670287671,10.89268249,191.23,191.18,0.06]
[1753670287985,62.28536498,191.23,191.22,1e-08]
[1753670288192,62.97536498,191.23,191.22,1e-08]
[1753670288498,63.25968812,191.23,191.22,1e-08]
[1753670288680,97.08775643,191.23,191.22,1e-08]
[1753670288989,86.19507394,191.23,191.22,1e-08]
[1753670289373,91.42437896,191.23,191.22,1e-08]
[1753670289573,26.0,191.2,191.18,1e-08]
[1753670289770,85.76770449,191.19,191.18,1e-08]
[1753670289970,86.45770449,191.19,191.18,1e-08]
[1753670290189,86.43871913,191.19,191.18,1e-08]
[1753670290686,45.91871913,191.19,191.18,1e-08]
[1753670290888,86.41855053,191.19,191.18,1e-08]
[1753670291272,91.93327274,191.19,191.18,1e-08]
[1753670291593,26.28432314,191.16,191.07,0.06]
[1753670291791,37.17700563,191.13,191.07,0.06]
[1753670292089,10.89268249,191.12,191.07,0.06]
[1753670292397,51.59268249,191.12,191.07,0.06]
[1753670292564,6.78695369,191.13,191.07,10.95268249]
[1753670292764,0.52695369,191.12,191.11,0.78]
[1753670292973,41.20695369,191.14,191.11,0.06]
[1753670293191,41.20695369,191.13,191.11,0.06]
[1753670293419,41.20695369,191.13,191.12,0.72]
[1753670293793,41.20695369,191.13,191.11,0.06]
[1753670294119,40.68,191.14,191.12,11.61268249]
[1753670294298,0.52695369,191.13,191.12,0.72]
[1753670294506,41.20695369,191.13,191.11,0.06]
[1753670294904,0.52695369,191.18,191.12,11.61268249]
[1753670295117,0.52695369,191.18,191.11,0.06]
[1753670295118,0.52695369,191.18,191.15,10.89268249]
[1753670295296,0.52695369,191.18,191.17,10.89268249]
[1753670295497,30.0,191.19,191.17,16.84347559]
[1753670295698,29.28,191.19,191.18,28.39736646]
[1753670296018,11.27413217,191.24,191.19,16.78468397]
[1753670296208,11.27413217,191.24,191.23,10.89268249]
[1753670296411,11.27413217,191.24,191.17,18.83125341]
[1753670296712,10.89268249,191.22,191.16,0.72]
[1753670297021,41.18695369,191.21,191.16,11.61268249]
[1753670297217,41.18695369,191.21,191.18,10.89268249]
[1753670297526,41.18695369,191.21,191.12,42.78468397]
[1753670297527,10.89268249,191.19,191.13,10.89268249]
[1753670297721,46.41682774,191.21,191.11,0.06]
[1753670297722,10.89268249,191.15,191.11,0.06]
[1753670298017,41.26695369,191.14,191.11,16.18520835]
[1753670298222,41.26695369,191.14,191.12,10.89268249]
[1753670298403,52.15963618,191.14,191.11,0.06]
[1753670298611,41.26695369,191.14,191.11,0.06]
[1753670299324,40.7,191.13,191.11,0.06]
[1753670299533,40.7,191.13,191.11,10.95268249]
[1753670299703,40.7,191.14,191.12,11.61268249]
[1753670299895,40.7,191.14,191.11,10.95268249]
[1753670300097,0.52695369,191.13,191.11,0.06]
[1753670300296,11.58268249,191.12,191.11,0.06]
[1753670300704,10.89268249,191.12,191.11,0.06]
[1753670301105,11.58268249,191.12,191.11,0.06]
[1753670301615,16.81499726,191.12,191.11,0.06]
[1753670303027,57.43499726,191.12,191.11,0.06]
[1753670304021,3.25810535,191.13,191.11,0.06]
[1753670304226,0.52695369,191.13,191.11,0.06]
[1753670304450,40.76,191.12,191.11,0.06]
[1753670305234,41.28695369,191.12,191.11,0.06]
[1753670305433,0.52695369,191.12,191.11,0.06]
[1753670305806,0.52695369,191.14,191.11,11.62268249]
[1753670306113,0.52695369,191.14,191.12,10.89268249]
[1753670306296,13.62367878,191.18,191.11,0.06]
[1753670306297,40.76,191.13,191.11,0.06]
[1753670306503,41.26695369,191.12,191.11,0.06]
[1753670307620,40.74,191.12,191.11,0.73]
[1753670307818,40.74,191.12,191.11,11.62268249]
[1753670308534,0.52695369,191.16,191.11,11.62268249]
[1753670308741,0.52695369,191.16,191.14,10.89268249]
[1753670308742,40.74,191.16,191.14,10.89268249]
[1753670308908,40.74,191.16,191.11,0.06]
[1753670308909,40.74,191.16,191.15,0.67]
[1753670310028,40.74,191.16,191.15,5.90149359]
[1753670310236,40.74,191.16,191.15,0.67]
[1753670310539,40.74,191.16,191.14,5.23175399]
[1753670310832,40.74,191.16,191.14,5.90175399]
[1753670311004,40.74,191.16,191.12,5.23215219]
[1753670311204,40.74,191.16,191.11,0.06]
[1753670311205,10.89268249,191.13,191.11,0.06]
[1753670311441,52.07963618,191.12,191.11,0.06]
[1753670311640,41.18695369,191.12,191.11,0.06]
[1753670311803,52.79963618,191.12,191.11,0.06]
[1753670312116,52.77963618,191.12,191.11,0.06]
[1753670312317,61.80269614,191.12,191.11,0.06]
[1753670312623,68.13661928,191.12,191.11,0.06]
[1753670312807,68.13661928,191.12,191.07,0.06]
[1753670312808,0.14216157,191.11,191.07,0.06]
[1753670312998,11.03484406,191.08,191.07,0.06]
[1753670313203,56.69254294,191.08,191.07,0.06]
[1753670313634,82.69254294,191.08,191.07,0.06]
[1753670314007,87.92595303,191.08,191.07,1e-08]
[1753670314320,78.710637,191.08,191.07,1e-08]
[1753670315115,21.30595303,191.08,191.07,1e-08]
[1753670315317,61.94595303,191.08,191.07,1e-08]
[1753670315816,62.0881146,191.08,191.07,1e-08]
[1753670316760,77.19543211,191.08,191.07,1e-08]
[1753670317054,88.0881146,191.08,191.07,1e-08]
[1753670318160,87.3681146,191.08,191.07,1e-08]
[1753670318365,88.0881146,191.08,191.07,1e-08]
[1753670318660,78.87279857,191.08,191.06,1e-08]
[1753670318834,32.47243479,191.07,191.06,1e-08]
[1753670320269,10.02875232,191.07,191.06,1e-08]
[1753670320430,61.72143481,191.07,191.06,1e-08]
[1753670320633,62.2483885,191.07,191.06,1e-08]
[1753670320969,45.09769888,191.07,191.06,1e-08]
[1753670321172,50.33138287,191.07,191.06,1e-08]
[1753670321468,61.22406536,191.07,191.06,1e-08]
[1753670321654,45.23986045,191.07,191.06,1e-08]
[1753670321840,55.46342768,191.07,191.06,1e-08]
[1753670322052,61.22406536,191.07,191.06,1e-08]
[1753670322358,62.11040687,191.07,191.06,1e-08]
[1753670322542,88.11040687,191.07,191.06,1e-08]